bitfinex/quotes_BTCUSD_20250610
["timestamp","ask_amount","ask_price","bid_price","bid_amount"]
[1749584435002,0.002,110190.0,110180.0,1.54552059]
[1749584435216,0.002,110190.0,110180.0,0.99036913]
[1749584435429,0.002,110190.0,110180.0,1.52945445]
[1749584435855,0.002,110190.0,110180.0,1.54606251]
[1749584436538,0.002,110190.0,110180.0,1.54994251]
[1749584436760,0.002,110190.0,110180.0,0.87890833]
[1749584436975,0.002,110190.0,110180.0,0.69000553]
[1749584437197,0.002,110190.0,110180.0,0.72260556]
[1749584437457,0.002,110190.0,110180.0,0.72260657]
[1749584437682,0.002,110190.0,110180.0,0.68984657]
[1749584438121,0.002,110190.0,110180.0,0.46484657]
[1749584438337,0.002,110190.0,110180.0,0.46484311]
[1749584438561,0.002,110190.0,110180.0,0.31540278]
[1749584438775,0.002,110190.0,110180.0,0.43381699]
[1749584438993,0.002,110190.0,110180.0,0.41103851]
[1749584439208,0.002,110190.0,110180.0,0.32161821]
[1749584439436,0.04984085,110190.0,110180.0,0.02626481]
[1749584439650,0.08114085,110190.0,110180.0,0.00969775]
[1749584439858,0.04984085,110190.0,110180.0,0.02927209]
[1749584440112,0.07686614,110190.0,110180.0,0.02005945]
[1749584440333,0.07686614,110190.0,110180.0,0.02848511]
[1749584440542,0.07686614,110190.0,110180.0,0.02948511]
[1749584440794,0.07686614,110190.0,110180.0,0.04506257]
[1749584441020,0.07686614,110190.0,110180.0,0.04506218]
[1749584441455,0.07686614,110190.0,110180.0,0.04206225]
[1749584441662,0.07686614,110190.0,110180.0,0.04306225]
[1749584442293,0.07686614,110190.0,110180.0,0.02548511]
[1749584442505,0.10726614,110190.0,110180.0,0.04205758]
[1749584442733,0.07686614,110190.0,110180.0,0.04205795]
[1749584443160,0.07686614,110190.0,110180.0,0.04206198]
[1749584443793,0.07686614,110190.0,110180.0,0.02548511]
[1749584444054,0.07686614,110190.0,110180.0,0.04206181]
[1749584444277,0.07686614,110190.0,110180.0,0.02548511]
[1749584444487,0.07686614,110190.0,110180.0,0.04206235]
[1749584444710,0.10976614,110190.0,110180.0,0.04206235]
[1749584444929,0.48606524,110190.0,110180.0,0.01706235]
[1749584445228,0.8521345,110190.0,110180.0,0.01706235]
[1749584445623,0.8521345,110190.0,110180.0,0.00048511]
[1749584445844,0.7407745,110190.0,110180.0,0.00048511]
[1749584446054,0.70674983,110190.0,110180.0,0.00048511]
[1749584446282,0.71582465,110190.0,110180.0,0.01707601]
[1749584446523,0.55926942,110190.0,110180.0,0.01707593]
[1749584446740,0.89720932,110190.0,110180.0,0.01707593]
[1749584446971,0.89720932,110190.0,110180.0,0.01707794]
[1749584447196,0.8881345,110190.0,110180.0,0.00048511]
[1749584447410,0.5501946,110190.0,110180.0,0.00048511]
[1749584447634,0.88805409,110190.0,110180.0,0.00048511]
[1749584447878,0.88805409,110190.0,110180.0,0.01707979]
[1749584448087,0.88805409,110190.0,110180.0,0.00048511]
[1749584448297,0.74077409,110190.0,110180.0,0.01707968]
[1749584448730,0.69735411,110190.0,110180.0,0.01707968]
[1749584448951,0.88793409,110190.0,110180.0,0.01707968]
[1749584449195,0.89700932,110190.0,110180.0,0.00048511]
[1749584449427,0.54311954,110190.0,110180.0,0.00048511]
[1749584449644,0.60788071,110190.0,110180.0,0.01708571]
[1749584449851,0.60788063,110190.0,110180.0,0.01708571]
[1749584450066,0.59880614,110190.0,110180.0,0.01708571]
[1749584450275,0.45176614,110190.0,110180.0,0.01708571]
[1749584450563,0.79834028,110190.0,110180.0,0.01708571]
[1749584450781,0.81649033,110190.0,110180.0,0.01708571]
[1749584450995,0.90784431,110190.0,110180.0,0.00048511]
[1749584451434,0.90784431,110190.0,110180.0,0.01709074]
[1749584451643,0.57034432,110190.0,110180.0,0.01709075]
[1749584451904,0.46084063,110190.0,110180.0,0.01709075]
[1749584452119,0.45176614,110190.0,110180.0,0.01709075]
[1749584452323,0.60768063,110190.0,110180.0,0.01709062]
[1749584452543,0.46084063,110190.0,110180.0,0.01709062]
[1749584452759,0.45176614,110190.0,110180.0,0.01709062]
[1749584452981,0.59852614,110190.0,110180.0,0.01709062]
[1749584453446,0.41886614,110190.0,110180.0,0.01709062]
[1749584453679,0.41886614,110190.0,110180.0,0.0233183]
[1749584454380,0.38556614,110190.0,110180.0,0.00671562]
[1749584454626,0.04556614,110190.0,110180.0,0.02332968]
[1749584454860,0.38556614,110190.0,110180.0,0.00671529]
[1749584455066,0.38556614,110190.0,110180.0,0.00048511]
[1749584455280,0.41676614,110190.0,110180.0,0.02332589]
[1749584455722,0.41676614,110190.0,110180.0,0.02333489]
[1749584456349,0.41676614,110190.0,110180.0,0.01710559]
[1749584456560,0.44816614,110190.0,110180.0,0.02334352]
[1749584456772,0.46631553,110190.0,110180.0,0.02334447]
[1749584457227,0.46631544,110190.0,110180.0,0.01711028]
[1749584457444,0.45724071,110190.0,110180.0,0.01711028]
[1749584457644,0.59308614,110190.0,110180.0,0.01711028]
[1749584457846,0.59308614,110190.0,110180.0,0.02334732]
[1749584458371,0.59308614,110190.0,110180.0,0.00672206]
[1749584458372,0.22156614,110190.0,110180.0,0.00672206]
[1749584458587,0.07676614,110190.0,110180.0,0.02335221]
[1749584458801,0.19032614,110190.0,110180.0,0.02335221]
[1749584459662,0.15540614,110190.0,110180.0,0.02335221]
[1749584459904,0.15540614,110190.0,110180.0,0.02335121]
[1749584460124,0.15540614,110190.0,110180.0,0.02335081]
[1749584460348,0.15540614,110190.0,110180.0,0.00048511]
[1749584460577,0.03102529,110190.0,110180.0,0.0980746]
[1749584460821,0.03102529,110190.0,110180.0,0.11470271]
[1749584461256,0.04556614,110190.0,110180.0,0.02334931]
[1749584461474,0.07606614,110190.0,110180.0,0.02334931]
[1749584461682,0.07606614,110190.0,110180.0,0.00672206]
[1749584461888,0.04356614,110190.0,110180.0,0.01711712]
[1749584462129,0.04356614,110190.0,110180.0,0.00048511]
[1749584462373,0.07506614,110190.0,110180.0,0.02335308]
[1749584462591,0.07506614,110190.0,110180.0,0.02335428]
[1749584463252,0.22434079,110190.0,110180.0,0.02335428]
[1749584463473,0.23341552,110190.0,110180.0,0.01711729]
[1749584463678,0.22434079,110190.0,110180.0,0.01712726]
[1749584463892,0.22434071,110190.0,110180.0,0.0171268]
[1749584464106,0.22434063,110190.0,110180.0,0.00048511]
[1749584464330,0.21526614,110190.0,110180.0,0.0067254]
[1749584464567,0.21526614,110190.0,110180.0,0.0233664]
[1749584464803,0.56434071,110190.0,110180.0,0.0233664]
[1749584465036,0.45454071,110190.0,110180.0,0.0233664]
[1749584465250,0.59902071,110190.0,110180.0,0.01712604]
[1749584465461,0.58994614,110190.0,110180.0,0.00048511]
[1749584465673,0.59902063,110190.0,110180.0,0.00048511]
[1749584465887,0.59902063,110190.0,110180.0,0.01712872]
[1749584466348,0.59902063,110190.0,110180.0,0.02337776]
[1749584466559,0.58994614,110190.0,110180.0,0.02339857]
[1749584466770,0.59902063,110190.0,110180.0,0.0233986]
[1749584466980,0.58994614,110190.0,110180.0,0.00048511]
[1749584467205,0.59902071,110190.0,110180.0,0.01714956]
[1749584467427,0.59902071,110190.0,110180.0,0.00673428]
[1749584467638,0.59902071,110190.0,110180.0,0.02339938]
[1749584467847,0.59902071,110190.0,110180.0,0.02339929]
[1749584468265,0.59902071,110190.0,110180.0,0.0234169]
[1749584468489,0.59902071,110190.0,110180.0,0.02342341]
[1749584468715,0.59224614,110190.0,110180.0,0.02342341]
[1749584468929,0.44776614,110190.0,110180.0,0.02342213]
[1749584469145,0.03002529,110190.0,110180.0,0.02342281]
[1749584469364,0.03002529,110190.0,110180.0,0.00048511]
[1749584469577,0.04456614,110190.0,110180.0,0.02341788]
[1749584469782,0.41716614,110190.0,110180.0,0.02341778]
[1749584470209,0.38456614,110190.0,110180.0,0.02341778]
[1749584470647,0.38456614,110190.0,110180.0,0.30896447]
[1749584470871,0.37002529,110190.0,110180.0,0.32353982]
[1749584471090,0.37002529,110190.0,110180.0,0.42531682]
[1749584471364,0.37002529,110190.0,110180.0,0.43157094]
[1749584472028,0.03002529,110190.0,110180.0,0.46436923]
[1749584472248,0.003,110190.0,110180.0,1.05007714]
[1749584472475,0.003,110190.0,110180.0,1.06882302]
[1749584472689,0.003,110190.0,110180.0,1.07506089]
[1749584472905,0.003,110190.0,110180.0,1.06881091]
[1749584473129,0.002,110190.0,110180.0,1.75429587]
[1749584473339,0.002,110190.0,110180.0,1.21575274]
[1749584473564,0.002,110190.0,110180.0,1.77295972]
[1749584473782,0.002,110190.0,110180.0,1.76670829]
[1749584473995,0.002,110190.0,110180.0,1.77595719]
[1749584474204,0.002,110190.0,110180.0,1.77595662]
[1749584474426,0.002,110190.0,110180.0,1.77595674]
[1749584474639,0.002,110190.0,110180.0,1.38560812]
[1749584474847,0.002,110190.0,110180.0,1.19783851]
[1749584475055,0.002,110190.0,110180.0,1.77595767]
[1749584475269,0.002,110190.0,110180.0,1.77595765]
[1749584475478,0.002,110190.0,110180.0,1.77595795]
[1749584475690,0.002,110190.0,110180.0,1.76970947]
[1749584475911,0.002,110190.0,110180.0,1.19783851]
[1749584476145,0.002,110190.0,110180.0,1.30671851]
[1749584476811,0.002,110190.0,110180.0,1.32338255]
[1749584477018,0.002,110190.0,110180.0,1.32338364]
[1749584477224,0.002,110190.0,110180.0,1.30671851]
[1749584477444,0.002,110190.0,110180.0,1.32338422]
[1749584477916,0.002,110190.0,110180.0,1.32338344]
[1749584478139,0.002,110190.0,110180.0,1.30671851]
[1749584478369,0.002,110190.0,110180.0,0.91733851]
[1749584478607,0.002,110190.0,110180.0,0.90118528]
[1749584478818,0.0321,110190.0,110180.0,0.02213188]
[1749584479506,0.0321,110190.0,110180.0,0.0221454]
[1749584479507,0.04664085,110190.0,110180.0,0.0221454]
[1749584479713,0.04664085,110190.0,110180.0,0.02214537]
[1749584479930,0.07694085,110190.0,110180.0,0.02214537]
[1749584480353,0.10474214,110190.0,110180.0,0.02214537]
[1749584480565,0.10474214,110190.0,110180.0,0.02214522]
[1749584480781,0.10474214,110190.0,110180.0,0.02014522]
[1749584480995,0.10474214,110190.0,110180.0,0.02114522]
[1749584481210,0.10474214,110190.0,110180.0,0.02114912]
[1749584481469,0.10259446,110190.0,110180.0,0.02115634]
[1749584481658,0.3843,110210.0,110180.0,0.11251329]
[1749584481869,0.01454085,110200.0,110180.0,0.43151624]
[1749584482079,0.01454085,110200.0,110180.0,0.40331624]
[1749584482796,0.01454085,110200.0,110180.0,0.40031624]
[1749584483021,0.01454085,110200.0,110180.0,0.38563851]
[1749584483245,0.01454085,110200.0,110180.0,0.40332285]
[1749584483463,0.01454085,110200.0,110180.0,0.40132313]
[1749584483697,0.0236146,110200.0,110180.0,0.4033261]
[1749584483962,0.01454085,110200.0,110180.0,0.4033261]
[1749584484189,0.0143,110210.0,110180.0,0.4360261]
[1749584484406,0.0143,110210.0,110190.0,0.1163534]
[1749584484628,0.0143,110210.0,110190.0,0.36573055]
[1749584484850,0.0143,110210.0,110190.0,0.36573049]
[1749584485067,0.0143,110210.0,110190.0,0.36573122]
[1749584485301,0.0143,110210.0,110190.0,0.36573107]
[1749584485506,0.0143,110210.0,110190.0,0.6575325]
[1749584486167,0.0143,110210.0,110190.0,0.65753409]
[1749584486382,0.0143,110210.0,110190.0,0.65753417]
[1749584486633,0.0143,110210.0,110190.0,0.7488934]
[1749584487296,0.0143,110210.0,110190.0,0.76557123]
[1749584487517,0.0143,110210.0,110190.0,0.76556965]
[1749584488629,0.0143,110210.0,110190.0,0.76556435]
[1749584488847,0.0143,110210.0,110190.0,0.7488934]
[1749584489084,0.0143,110210.0,110190.0,0.76556437]
[1749584489568,0.0143,110210.0,110200.0,0.58530791]
[1749584489806,0.0143,110210.0,110200.0,0.72483228]
[1749584490017,0.0143,110210.0,110200.0,1.49586131]
[1749584490438,0.0143,110210.0,110200.0,1.5125038]
[1749584490671,0.0143,110210.0,110200.0,1.0166038]
[1749584490878,0.0143,110210.0,110200.0,0.7248038]
[1749584491085,0.0143,110210.0,110200.0,0.16959589]
[1749584491291,0.0143,110210.0,110200.0,0.7248038]
[1749584491713,0.0143,110210.0,110200.0,0.72479338]
[1749584492367,0.0143,110210.0,110200.0,1.26659071]
[1749584492580,0.0143,110210.0,110200.0,1.24996131]
[1749584493019,0.0143,110210.0,110200.0,1.26658798]
[1749584493674,0.0143,110210.0,110200.0,0.71138007]
[1749584493892,0.0143,110210.0,110200.0,1.26658287]
[1749584494109,0.0143,110210.0,110200.0,1.26758257]
[1749584494325,0.0143,110210.0,110200.0,1.26958321]
[1749584494545,0.0143,110210.0,110200.0,1.25296131]
[1749584494764,0.0143,110210.0,110200.0,1.26958344]
[1749584494981,0.0143,110210.0,110200.0,0.97778344]
[1749584495427,0.0143,110210.0,110200.0,1.26958344]
[1749584495665,0.0143,110210.0,110200.0,1.26957758]
[1749584495876,0.0143,110210.0,110200.0,0.6977534]
[1749584496089,0.0143,110210.0,110200.0,1.25296131]
[1749584496524,0.0143,110210.0,110200.0,1.26957684]
[1749584497055,0.0143,110210.0,110200.0,1.27580593]
[1749584497268,0.0143,110210.0,110200.0,0.72059802]
[1749584497480,0.0143,110210.0,110200.0,0.98400135]
[1749584497694,0.0143,110210.0,110200.0,0.98400141]
[1749584497908,0.0143,110210.0,110200.0,0.98400508]
[1749584498127,0.0143,110210.0,110200.0,0.98400507]
[1749584498353,0.0143,110210.0,110200.0,0.98400496]
[1749584498574,0.0143,110210.0,110200.0,0.41218601]
[1749584498794,0.0143,110210.0,110200.0,0.96739405]
[1749584499228,0.0143,110210.0,110200.0,0.4059534]
[1749584499454,0.0143,110210.0,110200.0,0.96116131]
[1749584499672,0.0143,110210.0,110200.0,0.96739403]
[1749584499887,0.0143,110210.0,110200.0,0.96739383]
[1749584500099,0.0143,110210.0,110200.0,0.96739462]
[1749584500313,0.0143,110210.0,110200.0,0.96116131]
[1749584500525,0.0143,110210.0,110200.0,0.96739404]
[1749584500965,0.0143,110210.0,110200.0,0.4059534]
[1749584501185,0.0143,110210.0,110200.0,0.96116131]
[1749584501394,0.0143,110210.0,110200.0,0.96739499]
[1749584501605,0.0143,110210.0,110200.0,0.96739507]
[1749584501815,0.0143,110210.0,110200.0,0.96739514]
[1749584502914,0.0143,110210.0,110200.0,0.96739763]
[1749584503172,0.0143,110210.0,110200.0,0.96740037]
[1749584503378,0.0143,110210.0,110200.0,0.96116131]
[1749584503630,0.0143,110210.0,110200.0,0.96740051]
[1749584504045,0.0143,110210.0,110200.0,0.96740023]
[1749584504267,0.0143,110210.0,110200.0,1.07564023]
[1749584504702,0.0143,110210.0,110200.0,1.07564041]
[1749584504913,0.0143,110210.0,110200.0,1.0756402]
[1749584505128,0.0143,110210.0,110200.0,0.5141934]
[1749584505333,0.0143,110210.0,110200.0,1.0756402]
[1749584506200,0.0469,110210.0,110200.0,0.39239422]
[1749584506421,0.0143,110210.0,110200.0,0.4173954]
[1749584506632,0.0143,110210.0,110200.0,0.4111534]
[1749584506840,0.0143,110210.0,110200.0,0.41739632]
[1749584507499,0.0143,110210.0,110200.0,0.52535632]
[1749584507926,0.0143,110210.0,110200.0,0.417396]
[1749584508142,0.0143,110210.0,110200.0,1.10450131]
[1749584508587,0.0143,110210.0,110200.0,0.5492934]
[1749584508806,0.0143,110210.0,110200.0,1.61904328]
[1749584509031,0.0143,110210.0,110200.0,2.69367596]
[1749584509246,0.0143,110210.0,110200.0,1.55973537]
[1749584509463,0.0143,110210.0,110200.0,2.10870131]
[1749584509696,0.0143,110210.0,110200.0,1.50143571]
[1749584509964,0.0143,110210.0,110200.0,2.04740131]
[1749584510184,0.0143,110210.0,110200.0,2.057646]
[1749584510400,0.0143,110210.0,110200.0,1.70380639]
[1749584510613,0.0143,110210.0,110200.0,1.50627848]
[1749584510821,0.0143,110210.0,110200.0,1.47593848]
[1749584511055,0.0444,110210.0,110200.0,1.4696934]
[1749584511272,0.0444,110210.0,110200.0,1.36830817]
[1749584511482,0.0444,110210.0,110200.0,1.4696134]
[1749584511694,0.0444,110210.0,110200.0,1.47587079]
[1749584511942,0.0444,110210.0,110200.0,1.4696134]
[1749584512156,0.0444,110210.0,110200.0,0.50489097]
[1749584512377,0.0444,110210.0,110200.0,0.50489122]
[1749584512584,0.0444,110210.0,110200.0,0.39741122]
[1749584512795,0.0747,110210.0,110200.0,0.39741122]
[1749584513017,0.0747,110210.0,110200.0,0.39341122]
[1749584513233,0.0747,110210.0,110200.0,0.39341746]
[1749584513443,0.42924085,110210.0,110200.0,0.2978]
[1749584513654,0.42924085,110210.0,110200.0,0.30406494]
[1749584513863,0.42924085,110210.0,110200.0,0.2978]
[1749584514076,0.43831369,110210.0,110200.0,0.2938]
[1749584514288,0.42924085,110210.0,110200.0,0.30306495]
[1749584514729,0.42924085,110210.0,110200.0,0.30006495]
[1749584515534,0.44738678,110210.0,110200.0,0.30106598]
[1749584515738,0.43831369,110210.0,110200.0,0.30106607]
[1749584516187,0.42924085,110210.0,110200.0,0.30106607]
[1749584516390,0.43831377,110210.0,110200.0,0.30106607]
[1749584516598,0.44738686,110210.0,110200.0,0.30106607]
[1749584516812,0.45646003,110210.0,110200.0,0.30106725]
[1749584517021,0.45646003,110210.0,110200.0,0.3010675]
[1749584517022,0.47460686,110210.0,110200.0,0.3010675]
[1749584517225,0.46553336,110210.0,110200.0,0.3010675]
[1749584517429,0.43831377,110210.0,110200.0,0.003]
[1749584517648,0.44738686,110210.0,110200.0,0.0092703]
[1749584517859,0.43831377,110210.0,110200.0,0.00927042]
[1749584518079,0.43831377,110210.0,110200.0,0.003]
[1749584518304,0.44738678,110210.0,110200.0,0.003]
[1749584518545,0.48958028,110210.0,110200.0,0.003]
[1749584518989,0.4895802,110210.0,110200.0,0.003]
[1749584519415,0.0325,110190.0,110180.0,0.29228511]
[1749584519627,0.0325,110190.0,110180.0,0.38363851]
[1749584519853,0.0601058,110190.0,110180.0,0.38363851]
[1749584520292,0.0601058,110190.0,110180.0,0.38990902]
[1749584520722,0.0601058,110190.0,110180.0,0.39190902]
[1749584520942,0.0601058,110190.0,110180.0,0.38563851]
[1749584521150,0.4001058,110190.0,110180.0,0.39490282]
[1749584521356,0.4001058,110190.0,110180.0,0.39490174]
[1749584522195,0.0601058,110190.0,110180.0,0.39490174]
[1749584522651,0.0601058,110190.0,110180.0,0.38863851]
[1749584522867,0.0601058,110190.0,110180.0,0.3948972]
[1749584523087,0.0601058,110190.0,110180.0,0.39489719]
[1749584523305,0.0601058,110190.0,110180.0,0.3948973]
[1749584523997,0.48194616,110190.0,110180.0,0.0117439]
[1749584524217,0.76387893,110190.0,110180.0,0.0117439]
[1749584524424,0.76387893,110190.0,110180.0,0.01174786]
[1749584524640,0.76387893,110190.0,110180.0,0.00874817]
[1749584524850,0.76387893,110190.0,110180.0,0.00248511]
[1749584525066,0.76387893,110190.0,110180.0,0.00048511]
[1749584525485,0.75480395,110190.0,110180.0,0.00048511]
[1749584527609,0.78639047,110190.0,110180.0,0.00048511]
[1749584527817,0.80871052,110190.0,110180.0,0.00048511]
[1749584528034,0.777124,110190.0,110180.0,0.00048511]
[1749584529011,0.70370405,110190.0,110180.0,0.00048511]
[1749584529236,0.74000381,110190.0,110180.0,0.00048511]
[1749584529441,0.91243383,110190.0,110180.0,0.00048511]
[1749584529643,0.90335893,110190.0,110180.0,0.00048511]
[1749584531147,0.91243358,110190.0,110180.0,0.00048511]
[1749584531350,0.91243408,110190.0,110180.0,0.00048511]
[1749584533405,0.91227408,110190.0,110180.0,0.00048511]
[1749584534435,0.9031991,110190.0,110180.0,0.00048511]
[1749584535688,0.94455527,110190.0,110180.0,0.00048511]
[1749584535899,0.42135285,110170.0,110160.0,0.2938]
[1749584536106,0.52731285,110170.0,110160.0,0.002]
[1749584536491,0.5182363,110170.0,110160.0,0.002]
[1749584536690,0.52731268,110170.0,110160.0,0.002]
[1749584536853,0.5273126,110170.0,110160.0,0.002]
[1749584537062,0.53638915,110170.0,110160.0,0.002]
[1749584537728,0.53638906,110170.0,110160.0,0.002]
[1749584537965,0.52731252,110170.0,110160.0,0.002]
[1749584538138,0.52731268,110170.0,110160.0,0.002]
[1749584538291,0.5273126,110170.0,110160.0,0.002]
[1749584538936,0.74154441,110170.0,110160.0,0.002]
[1749584539167,0.55093,110170.0,110160.0,0.002]
[1749584539323,0.56000671,110170.0,110160.0,0.002]
[1749584539524,0.56000662,110170.0,110160.0,0.002]
[1749584539737,0.56908333,110170.0,110160.0,0.00147564]
[1749584539959,0.56000654,110170.0,110160.0,0.00147564]
[1749584541167,0.55092991,110170.0,110160.0,0.00147564]
[1749584541372,0.56000654,110170.0,110160.0,0.00147564]
[1749584542348,0.54185336,110170.0,110160.0,0.00147564]
[1749584542523,0.58268966,110170.0,110160.0,0.00147564]
[1749584542784,0.77330399,110170.0,110160.0,0.00147564]
[1749584543023,0.59176637,110170.0,110160.0,0.00147564]
[1749584543229,0.58268966,110170.0,110160.0,0.02440742]
[1749584543645,0.4358932,110170.0,110160.0,0.02440742]
[1749584543885,0.58264966,110170.0,110160.0,0.018153]
[1749584544100,0.58264958,110170.0,110160.0,0.01815328]
[1749584544310,0.58264958,110170.0,110160.0,0.02440767]
[1749584544540,0.58264958,110170.0,110160.0,0.01815351]
[1749584544752,0.58264958,110170.0,110160.0,0.02440766]
[1749584545410,0.59172613,110170.0,110160.0,0.02440766]
[1749584545625,0.59172604,110170.0,110160.0,0.02443652]
[1749584545840,0.59172604,110170.0,110160.0,0.00147564]
[1749584546266,0.58264958,110170.0,110160.0,0.02443909]
[1749584546450,0.58264958,110170.0,110160.0,0.00147564]
[1749584546742,0.56449698,110170.0,110160.0,0.02444197]
[1749584546964,0.66729607,110170.0,110160.0,0.02444197]
[1749584547187,0.94018784,110170.0,110160.0,0.02444282]
[1749584547399,0.3705,110150.0,110140.0,0.2938]
[1749584547607,0.49477589,110150.0,110140.0,0.30006687]
[1749584547831,0.49477589,110150.0,110140.0,0.30006689]
[1749584547832,0.52507597,110150.0,110140.0,0.30006689]
[1749584548079,0.534154,110150.0,110140.0,0.30006712]
[1749584548302,0.561387,110150.0,110140.0,0.2938]
[1749584548509,0.534153,110150.0,110140.0,0.31777933]
[1749584548716,0.50433561,110150.0,110140.0,0.31777874]
[1749584548896,0.51341347,110150.0,110140.0,0.31677874]
[1749584549116,0.50433561,110150.0,110140.0,0.31677682]
[1749584549346,0.51341347,110150.0,110140.0,0.31251035]
[1749584549540,0.39821561,110150.0,110140.0,0.31877659]
[1749584549753,0.53609561,110150.0,110140.0,0.2938]
[1749584549958,0.39821561,110150.0,110140.0,0.31678414]
[1749584550152,0.54617673,110150.0,110140.0,0.31051554]
[1749584550386,0.65207098,110150.0,110140.0,0.02498313]
[1749584550584,0.69364884,110150.0,110140.0,0.02498313]
[1749584550792,0.69364884,110150.0,110140.0,0.01871554]
[1749584550993,0.7118049,110150.0,110140.0,0.02500337]
[1749584551131,0.72088326,110150.0,110140.0,0.00827364]
[1749584551332,0.72088326,110150.0,110140.0,0.01872961]
[1749584551538,0.72088326,110150.0,110140.0,0.02500382]
[1749584551739,0.7118049,110150.0,110140.0,0.02500382]
[1749584551947,0.72088318,110150.0,110140.0,0.02500382]
[1749584552149,0.54673098,110150.0,110140.0,0.02500382]
[1749584552356,0.69340893,110150.0,110140.0,0.02500382]
[1749584552558,0.06833673,110150.0,110140.0,0.01874661]
[1749584552759,0.01060373,110150.0,110140.0,0.07614661]
[1749584553047,0.01060373,110150.0,110140.0,0.11371727]
[1749584553469,0.01060373,110150.0,110140.0,0.40551727]
[1749584553889,0.36514458,110150.0,110140.0,0.40551727]
[1749584554100,0.36514458,110150.0,110140.0,0.39923957]
[1749584554312,0.36514458,110150.0,110140.0,0.3825]
[1749584554605,0.36514458,110150.0,110140.0,0.40551219]
[1749584554820,0.36514458,110150.0,110140.0,0.3825]
[1749584555032,0.36514458,110150.0,110140.0,0.40551494]
[1749584555235,0.36514458,110150.0,110140.0,0.40551556]
[1749584555471,0.36514458,110150.0,110140.0,0.40551578]
[1749584555688,0.36514458,110150.0,110140.0,0.40551635]
[1749584556103,0.36514458,110150.0,110140.0,0.36793932]
[1749584556336,0.36514458,110150.0,110140.0,0.35747727]
[1749584556555,0.36514458,110150.0,110140.0,0.37421748]
[1749584556779,0.36514458,110150.0,110140.0,0.35747722]
[1749584556995,0.36514458,110150.0,110140.0,0.36793922]
[1749584557199,0.36514458,110150.0,110140.0,0.37421642]
[1749584557409,0.36514458,110150.0,110140.0,0.37421696]
[1749584557617,0.36514458,110150.0,110140.0,0.3512]
[1749584557820,0.36514458,110150.0,110140.0,0.36793966]
[1749584558232,0.36514458,110150.0,110140.0,0.37421703]
[1749584558489,0.5978713,110150.0,110140.0,0.31054136]
[1749584558705,0.71922511,110150.0,110140.0,0.31054469]
[1749584558923,0.74234156,110150.0,110140.0,0.02502873]
[1749584559359,0.57166266,110130.0,110120.0,0.002]
[1749584559563,0.70698332,110130.0,110120.0,0.002]
[1749584559990,0.70755757,110130.0,110120.0,0.002]
[1749584560206,0.85887426,110130.0,110120.0,0.002]
[1749584560659,0.85887426,110130.0,110120.0,0.003]
[1749584560907,0.85360001,110130.0,110120.0,0.003]
[1749584561113,0.61784046,110110.0,110100.0,0.002]
[1749584561327,0.61784046,110110.0,110080.0,0.002]
[1749584561328,0.01454085,110090.0,110080.0,0.002]
[1749584561536,0.11994085,110090.0,110080.0,0.002]
[1749584561752,0.1430573,110090.0,110080.0,0.002]
[1749584562227,0.1713173,110090.0,110080.0,0.002]
[1749584562455,0.50684887,110090.0,110080.0,0.002]
[1749584562675,0.57873185,110090.0,110080.0,0.003]
[1749584562898,0.73728568,110090.0,110080.0,0.003]
[1749584563124,0.87587255,110090.0,110080.0,0.004]
[1749584563352,0.86678941,110090.0,110080.0,0.004]
[1749584563812,0.52959301,110090.0,110080.0,0.004]
[1749584564037,0.35132316,110090.0,110080.0,0.004]
[1749584564273,0.53888878,110090.0,110080.0,0.003]
[1749584564523,0.74367585,110090.0,110080.0,0.003]
[1749584564981,0.74367585,110090.0,110080.0,0.002]
[1749584564982,0.7205594,110090.0,110080.0,0.002]
[1749584565436,0.74367585,110090.0,110080.0,0.002]
[1749584565659,0.88552312,110090.0,110080.0,0.002]
[1749584565883,0.86710925,110090.0,110080.0,0.002]
[1749584566577,0.8439928,110090.0,110080.0,0.002]
[1749584566796,0.86710925,110090.0,110080.0,0.002]
[1749584567283,0.8439928,110090.0,110080.0,0.002]
[1749584567511,0.86710925,110090.0,110080.0,0.002]
[1749584567733,0.91805456,110090.0,110080.0,0.002]
[1749584567958,0.86710925,110090.0,110080.0,0.002]
[1749584568179,0.86810925,110090.0,110080.0,0.002]
[1749584568649,0.02362539,110070.0,110060.0,0.002]
[1749584568875,0.12038085,110070.0,110060.0,0.002]
[1749584569108,0.1434973,110070.0,110060.0,0.002]
[1749584569330,0.17803482,110070.0,110060.0,0.002]
[1749584569548,0.50894994,110070.0,110060.0,0.002]
[1749584570003,0.56889234,110070.0,110060.0,0.002]
[1749584570444,0.57797738,110070.0,110060.0,0.002]
[1749584570670,0.72747951,110070.0,110060.0,0.002]
[1749584570904,0.66523186,110070.0,110060.0,0.002]
[1749584571126,0.66028442,110070.0,110060.0,0.002]
[1749584571349,0.66936921,110070.0,110060.0,0.002]
[1749584571581,0.66028442,110070.0,110060.0,0.01864182]
[1749584571806,0.66028433,110070.0,110060.0,0.01864056]
[1749584572037,0.67054707,110070.0,110060.0,0.01864075]
[1749584572265,0.67054707,110070.0,110060.0,0.002]
[1749584572492,0.67054707,110070.0,110060.0,0.01864075]
[1749584572718,0.67054707,110070.0,110060.0,0.01864076]
[1749584572719,0.56102475,110070.0,110060.0,0.01864076]
[1749584572944,0.3780039,110070.0,110060.0,0.01864076]
[1749584573177,0.4839239,110070.0,110060.0,0.01864076]
[1749584573713,0.4839239,110070.0,110060.0,0.01862994]
[1749584573942,0.49846475,110070.0,110060.0,0.01862966]
[1749584574155,0.49846475,110070.0,110060.0,0.01862963]
[1749584574374,0.49846475,110070.0,110060.0,0.31042962]
[1749584574592,0.49846475,110070.0,110060.0,0.31042945]
[1749584574812,0.49846475,110070.0,110060.0,0.3104322]
[1749584575257,0.49846475,110070.0,110060.0,0.2938]
[1749584575484,0.49846475,110070.0,110060.0,0.31043275]
[1749584575714,0.49846475,110070.0,110060.0,0.2938]
[1749584575966,0.39254475,110070.0,110060.0,0.2938]
[1749584576208,0.49842475,110070.0,110060.0,0.04942762]
[1749584576430,0.49842475,110070.0,110060.0,0.08122762]
[1749584576874,0.49842475,110070.0,110060.0,0.04942762]
[1749584577261,0.49842475,110070.0,110060.0,0.04943488]
[1749584577555,0.49842475,110070.0,110060.0,0.0494349]
[1749584577766,0.49842475,110070.0,110060.0,0.0494348]
[1749584577979,0.49842475,110070.0,110060.0,0.04943479]
[1749584578405,0.49842475,110070.0,110060.0,0.01863479]
[1749584578584,0.49842475,110070.0,110060.0,0.01864169]
[1749584578830,0.49842475,110070.0,110060.0,0.01864303]
[1749584579036,0.49842475,110070.0,110060.0,0.002]
[1749584579242,0.50730913,110070.0,110060.0,0.002]